[Event "LJ Slovak Open 2022"]
[Site "Liptovsky Jan"]
[Date "2022.06.23"]
[Round "1.36"]
[White "Valko, Michal"]
[Black "Carnecky, Viliam"]
[Result "1-0"]
[ECO "B10"]
[WhiteElo "1906"]
[BlackElo "1380"]
[Annotator "NA RC"]
[PlyCount "41"]
[EventDate "2022.06.23"]
[EventType "swiss"]
[EventCountry "SVK"]
[SourceTitle "playchess.com"]
[Source "ChessBase"]
[SourceQuality "1"]
[TimeControl "3600+30"]

1. e4 {[%emt 0:00:07]} c6 {[%emt 0:00:09]} 2. c4 {[%emt 0:00:08]} d5 {[%emt 0:00:31]} 3. exd5 {[%emt 0:00:07]} cxd5 {[%emt 0:00:49]} 4. cxd5 {[%emt 0:00:08]} Qxd5 {[%emt 0:00:53]} 5. Nc3 {[%emt 0:00:19]} Qa5 {[%emt 0:02:59]} 6. Nf3 {[%emt 0:01:58]} Nf6 {[%emt 0:02:51]} 7. d4 {[%emt 0:02:55]} e6 {[%emt 0:04:14]} 8. Bd3 {[%emt 0:00:30]} Nbd7 {[%emt 0:04:26]} 9. O-O {[%emt 0:01:23]} Be7 {[%emt 0:03:15]} 10. Re1 {[%emt 0:00:41]} O-O {[%emt 0:03:02]} 11. d5 {[%emt 0:03:18]} Nc5 {[%emt 0:05:51]} 12. Bc2 {[%emt 0:02:32]} Rd8 {[%emt 0:06:53]} 13. Ne5 {[%emt 0:08:22]} Nxd5 {[%emt 0:07:18]} 14. Bxh7+ {[%emt 0:06:48]} Kxh7 {[%emt 0:24:19]} 15. Qh5+ {[%emt 0:38:44]} Kg8 {[%emt 0:00:30]} 16. Qxf7+ {[%emt 0:00:30]} Kh7 {[%emt 0:00:30]} 17. Bd2 {[%emt 0:00:30]} Qb6 {[%emt 0:00:30]} 18. Nxd5 {[%emt 0:00:30]} Rxd5 {[%emt 0:00:30]} 19. Re3 {[%emt 0:00:30]} Bg5 {[%emt 0:00:30]} 20. Rh3+ {[%emt 0:00:30]} Bh6 {[%emt 0:00:30]} 21. Rxh6# {[%emt 0:00:30]} 1-0

[Event "LJ Slovak Open 2022"]
[Site "Liptovsky Jan"]
[Date "2022.06.23"]
[Round "1.37"]
[White "Magda, Juraj"]
[Black "Gollner, Martin"]
[Result "0-1"]
[ECO "B40"]
[WhiteElo "1301"]
[BlackElo "1585"]
[Annotator "NA RC"]
[PlyCount "99"]
[EventDate "2022.06.23"]
[EventType "swiss"]
[EventCountry "SVK"]
[SourceTitle "playchess.com"]
[Source "ChessBase"]
[SourceQuality "1"]
[TimeControl "3600+30"]

1. e4 {[%emt 0:00:09]} c5 {[%emt 0:00:07]} 2. Nf3 {[%emt 0:00:07]} e6 {[%emt 0:00:10]} 3. Bb5 {[%emt 0:00:52]} a6 {[%emt 0:01:23]} 4. Be2 {[%emt 0:00:32]} d5 {[%emt 0:00:53]} 5. exd5 {[%emt 0:00:23]} exd5 {[%emt 0:00:13]} 6. d4 {[%emt 0:00:56]} Nc6 {[%emt 0:01:53]} 7. O-O {[%emt 0:02:05]} Nf6 {[%emt 0:04:44]} 8. Re1 {[%emt 0:01:40]} Be6 {[%emt 0:01:07]} 9. Bg5 {[%emt 0:01:33]} cxd4 {[%emt 0:01:56]} 10. Nxd4 {[%emt 0:00:36]} Be7 {[%emt 0:01:57]} 11. Nxe6 {[%emt 0:01:40]} fxe6 {[%emt 0:00:04]} 12. Bg4 {[%emt 0:00:51]} Nxg4 {[%emt 0:07:51]} 13. Bxe7 {[%emt 0:00:29]} Qxe7 {[%emt 0:00:42]} 14. Qxg4 {[%emt 0:00:14]} e5 {[%emt 0:02:56]} 15. Nc3 {[%emt 0:04:09]} Qf7 {[%emt 0:04:25]} 16. a3 {[%emt 0:05:53]} O-O {[%emt 0:01:53]} 17. Qg3 {[%emt 0:02:52]} Rae8 {[%emt 0:04:44]} 18. Rad1 {[%emt 0:02:05]} Nd4 {[%emt 0:03:04]} 19. Rd2 {[%emt 0:04:11]} Nf5 {[%emt 0:01:43]} 20. Qf3 {[%emt 0:01:52]} d4 {[%emt 0:01:47]} 21. Nd1 {[%emt 0:04:31]} Nd6 {[%emt 0:06:48]} 22. Qxf7+ {[%emt 0:00:55]} Rxf7 {[%emt 0:00:04]} 23. c3 {[%emt 0:01:26]} Nc4 {[%emt 0:00:58]} 24. Rxd4 {[%emt 0:01:17]} b5 {[%emt 0:06:01]} 25. Rde4 {[%emt 0:05:08]} Rd8 {[%emt 0:02:15]} 26. a4 {[%emt 0:00:44]} Rfd7 {[%emt 0:03:43]} 27. Ne3 {[%emt 0:05:51]} Nxb2 {[%emt 0:00:50]} 28. axb5 {[%emt 0:00:37]} axb5 {[%emt 0:00:03]} 29. g3 {[%emt 0:04:28]} Rc7 {[%emt 0:04:02]} 30. Rb1 {[%emt 0:00:36]} Na4 {[%emt 0:02:18]} 31. Rc1 {[%emt 0:06:17]} Nxc3 {[%emt 0:01:20]} 32. Rxe5 {[%emt 0:00:17]} Ne2+ {[%emt 0:00:08]} 33. Kf1 {[%emt 0:00:57]} Nxc1 {[%emt 0:00:11]} 34. Rxb5 {[%emt 0:00:09]} Nd3 {[%emt 0:00:47]} 35. Rd5 {[%emt 0:01:17]} Rxd5 {[%emt 0:00:18]} 36. Nxd5 {[%emt 0:00:03]} Rf7 {[%emt 0:00:26]} 37. f4 {[%emt 0:00:20]} Rd7 {[%emt 0:01:32]} 38. Ne3 {[%emt 0:00:35]} Kf7 {[%emt 0:00:40]} 39. Ke2 {[%emt 0:00:13]} Nc1+ {[%emt 0:01:08]} 40. Kf3 {[%emt 0:00:09]} Rd3 {[%emt 0:01:06]} 41. Ke4 {[%emt 0:00:12]} Ke6 {[%emt 0:00:52]} 42. f5+ {[%emt 0:01:01]} Kf6 {[%emt 0:01:01]} 43. h4 {[%emt 0:01:32]} Rxe3+ {[%emt 0:00:32]} 44. Kxe3 {[%emt 0:00:19]} Kxf5 {[%emt 0:00:06]} 45. Kf3 {[%emt 0:00:26]} h5 {[%emt 0:00:09]} 46. g4+ {[%emt 0:02:17]} hxg4+ {[%emt 0:00:09]} 47. Kg3 {[%emt 0:00:10]} Ne2+ {[%emt 0:00:26]} 48. Kf2 {[%emt 0:00:34]} Nf4 {[%emt 0:00:31]} 49. Kg3 {[%emt 0:00:30]} Nh5+ {[%emt 0:00:14]} 50. Kg2 {[%emt 0:00:14]} 0-1

[Event "LJ Slovak Open 2022"]
[Site "Liptovsky Jan"]
[Date "2022.06.23"]
[Round "1.38"]
[White "Koska, Jiri"]
[Black "Livnansky, Michal"]
[Result "1-0"]
[ECO "B01"]
[WhiteElo "1759"]
[BlackElo "1279"]
[Annotator "NA RC"]
[PlyCount "75"]
[EventDate "2022.06.23"]
[EventType "swiss"]
[EventCountry "SVK"]
[SourceTitle "playchess.com"]
[Source "ChessBase"]
[SourceQuality "1"]
[TimeControl "3600+30"]

1. e4 {[%emt 0:00:05]} d5 {[%emt 0:00:15]} 2. exd5 {[%emt 0:00:18]} Qxd5 {[%emt 0:00:11]} 3. Nc3 {[%emt 0:00:22]} Qa5 {[%emt 0:00:24]} 4. d4 {[%emt 0:00:38]} c6 {[%emt 0:00:29]} 5. Nf3 {[%emt 0:01:27]} Nf6 {[%emt 0:01:29]} 6. Bc4 {[%emt 0:04:49]} Bf5 {[%emt 0:00:31]} 7. Bd2 {[%emt 0:08:02]} Qc7 {[%emt 0:03:30]} 8. Ne5 {[%emt 0:13:47]} e6 {[%emt 0:02:15]} 9. Bg5 {[%emt 0:04:11]} Be7 {[%emt 0:01:56]} 10. g4 {[%emt 0:03:46]} Nxg4 {[%emt 0:04:43]} 11. Nxg4 {[%emt 0:06:05]} Bxg5 {[%emt 0:00:50]} 12. h4 {[%emt 0:00:35]} Qf4 {[%emt 0:03:22]} 13. hxg5 {[%emt 0:03:31]} Bxg4 {[%emt 0:00:21]} 14. Qd2 {[%emt 0:00:18]} Qxd2+ {[%emt 0:01:47]} 15. Kxd2 {[%emt 0:00:01]} h5 {[%emt 0:03:02]} 16. gxh6 {[%emt 0:01:22]} Rxh6 {[%emt 0:04:50]} 17. Rxh6 {[%emt 0:00:53]} gxh6 {[%emt 0:00:07]} 18. Rh1 {[%emt 0:00:15]} b5 {[%emt 0:02:41]} 19. Bd3 {[%emt 0:00:41]} h5 {[%emt 0:02:04]} 20. Ne4 {[%emt 0:01:05]} Ke7 {[%emt 0:02:12]} 21. Ng3 {[%emt 0:01:34]} Bf3 {[%emt 0:01:00]} 22. Rh4 {[%emt 0:01:27]} Nd7 {[%emt 0:01:51]} 23. Ke3 {[%emt 0:01:43]} Bd5 {[%emt 0:03:59]} 24. Rxh5 {[%emt 0:01:19]} Bxa2 {[%emt 0:01:41]} 25. b3 {[%emt 0:00:33]} Nf6 {[%emt 0:03:01]} 26. Rh1 {[%emt 0:01:17]} Nd5+ {[%emt 0:00:06]} 27. Kd2 {[%emt 0:00:05]} a5 {[%emt 0:02:09]} 28. Ra1 {[%emt 0:00:43]} Nb4 {[%emt 0:00:13]} 29. Ne2 {[%emt 0:04:43]} a4 {[%emt 0:02:25]} 30. Kc3 {[%emt 0:02:36]} Nxd3 {[%emt 0:09:27]} 31. Kxd3 {[%emt 0:00:19]} axb3 {[%emt 0:00:23]} 32. cxb3 {[%emt 0:00:07]} Ra3 {[%emt 0:05:27]} 33. Nc1 {[%emt 0:00:10]} Kd6 {[%emt 0:01:54]} 34. Rxa2 {[%emt 0:00:07]} b4 {[%emt 0:00:43]} 35. Kc4 {[%emt 0:00:24]} Rxa2 {[%emt 0:00:31]} 36. Nxa2 {[%emt 0:00:06]} e5 {[%emt 0:00:48]} 37. Nxb4 {[%emt 0:00:38]} exd4 {[%emt 0:00:31]} 38. Nd3 {[%emt 0:00:20]} 1-0

[Event "LJ Slovak Open 2022"]
[Site "Liptovsky Jan"]
[Date "2022.06.23"]
[Round "1.39"]
[White "Freibergs, Filips"]
[Black "Mrkvik, Jan"]
[Result "1/2-1/2"]
[ECO "D04"]
[WhiteElo "1250"]
[BlackElo "1810"]
[Annotator "NA RC"]
[PlyCount "112"]
[EventDate "2022.06.23"]
[EventType "swiss"]
[EventCountry "SVK"]
[SourceTitle "playchess.com"]
[Source "ChessBase"]
[SourceQuality "1"]
[TimeControl "3600+30"]

1. d4 {[%emt 0:00:07]} d5 {[%emt 0:00:09]} 2. Nf3 {[%emt 0:00:04]} Nf6 {[%emt 0:00:33]} 3. e3 {[%emt 0:00:07]} c6 {[%emt 0:00:15]} 4. Nbd2 {[%emt 0:00:14]} e6 {[%emt 0:00:35]} 5. b3 {[%emt 0:00:19]} Nbd7 {[%emt 0:00:29]} 6. Bb2 {[%emt 0:00:20]} Bd6 {[%emt 0:00:53]} 7. Ne5 {[%emt 0:00:32]} O-O {[%emt 0:00:27]} 8. Bd3 {[%emt 0:00:32]} Re8 {[%emt 0:02:24]} 9. O-O {[%emt 0:01:45]} Qc7 {[%emt 0:01:22]} 10. f4 {[%emt 0:00:27]} b6 {[%emt 0:02:35]} 11. Rf3 {[%emt 0:03:19]} Nf8 {[%emt 0:01:24]} 12. Rh3 {[%emt 0:03:07]} Re7 {[%emt 0:23:10]} 13. g4 {[%emt 0:02:21]} g6 {[%emt 0:05:34]} 14. Rg3 {[%emt 0:09:55]} a5 {[%emt 0:03:21]} 15. f5 {[%emt 0:06:21]} exf5 {[%emt 0:03:30]} 16. gxf5 {[%emt 0:00:51]} N6d7 {[%emt 0:04:27]} 17. Ndf3 {[%emt 0:12:58]} f6 {[%emt 0:03:25]} 18. fxg6 {[%emt 0:01:47]} h6 {[%emt 0:00:31]} 19. g7 {[%emt 0:07:07]} Rxg7 {[%emt 0:00:23]} 20. Rxg7+ {[%emt 0:00:25]} Kxg7 {[%emt 0:00:08]} 21. Ng4 {[%emt 0:03:21]} c5 {[%emt 0:01:33]} 22. dxc5 {[%emt 0:01:13]} bxc5 {[%emt 0:01:07]} 23. Nh4 {[%emt 0:00:54]} Ne5 {[%emt 0:00:42]} 24. Nf5+ {[%emt 0:01:37]} Bxf5 {[%emt 0:00:57]} 25. Bxf5 {[%emt 0:00:02]} Re8 {[%emt 0:06:03]} 26. Kh1 {[%emt 0:02:08]} Ne6 {[%emt 0:03:41]} 27. Nxe5 {[%emt 0:01:50]} Bxe5 {[%emt 0:00:19]} 28. Qg4+ {[%emt 0:00:33]} Ng5 {[%emt 0:01:40]} 29. Bxe5 {[%emt 0:00:25]} Qxe5 {[%emt 0:00:10]} 30. Rg1 {[%emt 0:00:28]} h5 {[%emt 0:03:06]} 31. Qf4 {[%emt 0:01:47]} Qxe3 {[%emt 0:00:29]} 32. Qxe3 {[%emt 0:00:08]} Rxe3 {[%emt 0:00:05]} 33. h4 {[%emt 0:00:47]} Kh6 {[%emt 0:00:51]} 34. hxg5+ {[%emt 0:00:47]} fxg5 {[%emt 0:00:05]} 35. Rf1 {[%emt 0:00:49]} Re2 {[%emt 0:00:40]} 36. Bd3 {[%emt 0:00:05]} Rd2 {[%emt 0:00:54]} 37. Rf6+ {[%emt 0:00:43]} Kg7 {[%emt 0:00:02]} 38. Rg6+ {[%emt 0:00:05]} Kf8 {[%emt 0:00:26]} 39. Rxg5 {[%emt 0:00:06]} c4 {[%emt 0:00:06]} 40. bxc4 {[%emt 0:00:18]} dxc4 {[%emt 0:00:04]} 41. Bxc4 {[%emt 0:00:01]} Rxc2 {[%emt 0:00:12]} 42. Bb3 {[%emt 0:00:04]} Rb2 {[%emt 0:02:02]} 43. Rxa5 {[%emt 0:00:09]} h4 {[%emt 0:00:32]} 44. Rh5 {[%emt 0:00:18]} Ke7 {[%emt 0:00:11]} 45. Rxh4 {[%emt 0:00:28]} Kd6 {[%emt 0:00:06]} 46. Rc4 {[%emt 0:01:12]} Rd2 {[%emt 0:00:32]} 47. Kg1 {[%emt 0:00:54]} Kd7 {[%emt 0:00:41]} 48. Kf1 {[%emt 0:00:27]} Rh2 {[%emt 0:00:09]} 49. Ke1 {[%emt 0:00:35]} Kd6 {[%emt 0:00:05]} 50. Rc2 {[%emt 0:00:38]} Rh7 {[%emt 0:00:34]} 51. Kd2 {[%emt 0:00:33]} Ra7 {[%emt 0:00:05]} 52. Rc4 {[%emt 0:00:20]} Kd7 {[%emt 0:00:41]} 53. Kc3 {[%emt 0:01:24]} Kd6 {[%emt 0:00:11]} 54. Ba4 {[%emt 0:02:18]} Kd5 {[%emt 0:00:43]} 55. Kb4 {[%emt 0:00:35]} Rxa4+ {[%emt 0:00:08]} 56. Kxa4 {[%emt 0:00:34]} Kxc4 {[%emt 0:00:04]} 1/2-1/2

[Event "LJ Slovak Open 2022"]
[Site "Liptovsky Jan"]
[Date "2022.06.23"]
[Round "1.40"]
[White "Haasova, Timea"]
[Black "Hudak, Michal"]
[Result "1-0"]
[ECO "D04"]
[WhiteElo "1811"]
[BlackElo "1169"]
[Annotator "NA"]
[PlyCount "107"]
[EventDate "2022.06.23"]
[EventType "swiss"]
[EventCountry "SVK"]
[SourceTitle "playchess.com"]
[Source "ChessBase"]
[SourceQuality "1"]
[TimeControl "3600+30"]

1. d4 {[%emt 0:00:05]} d5 {[%emt 0:00:08]} 2. Nf3 {[%emt 0:00:08]} Nf6 {[%emt 0:00:16]} 3. e3 {[%emt 0:00:14]} c6 {[%emt 0:00:19]} 4. Bd3 {[%emt 0:00:10]} Bg4 {[%emt 0:00:20]} 5. Nbd2 {[%emt 0:00:24]} Nbd7 {[%emt 0:01:17]} 6. c3 {[%emt 0:01:21]} e5 {[%emt 0:00:54]} 7. dxe5 {[%emt 0:01:42]} Nxe5 {[%emt 0:01:12]} 8. Be2 {[%emt 0:00:50]} Bd6 {[%emt 0:01:30]} 9. Nxe5 {[%emt 0:03:14]} Bxe2 {[%emt 0:00:22]} 10. Nxf7 {[%emt 0:02:43]} Bxd1 {[%emt 0:00:21]} 11. Nxd8 {[%emt 0:00:21]} Rxd8 {[%emt 0:00:15]} 12. Kxd1 {[%emt 0:00:20]} O-O {[%emt 0:00:14]} 13. Nf3 {[%emt 0:09:14]} Rde8 {[%emt 0:02:42]} 14. h3 {[%emt 0:04:41]} Ne4 {[%emt 0:01:53]} 15. Rf1 {[%emt 0:04:11]} c5 {[%emt 0:01:41]} 16. Kc2 {[%emt 0:02:14]} b5 {[%emt 0:00:41]} 17. a3 {[%emt 0:01:39]} c4 {[%emt 0:02:57]} 18. Bd2 {[%emt 0:01:40]} Nc5 {[%emt 0:00:54]} 19. Nd4 {[%emt 0:04:09]} a6 {[%emt 0:06:53]} 20. b4 {[%emt 0:02:52]} cxb3+ {[%emt 0:00:30]} 21. Nxb3 {[%emt 0:00:49]} Nxb3 {[%emt 0:00:22]} 22. Kxb3 {[%emt 0:00:13]} Re4 {[%emt 0:01:07]} 23. Rad1 {[%emt 0:03:46]} Rc8 {[%emt 0:03:44]} 24. f3 {[%emt 0:02:39]} Ra4 {[%emt 0:09:43]} 25. Bc1 {[%emt 0:00:53]} Rac4 {[%emt 0:14:00]} 26. Bb2 {[%emt 0:01:11]} Bc5 {[%emt 0:00:30]} 27. Rxd5 {[%emt 0:03:01]} Bxe3 {[%emt 0:00:56]} 28. Re1 {[%emt 0:01:29]} Bc5 {[%emt 0:03:00]} 29. Re6 {[%emt 0:03:19]} a5 {[%emt 0:01:58]} 30. Rde5 {[%emt 0:01:02]} a4+ {[%emt 0:07:31]} 31. Ka2 {[%emt 0:00:21]} Kf7 {[%emt 0:03:00]} 32. Re4 {[%emt 0:01:58]} Rxe4 {[%emt 0:02:50]} 33. Rxe4 {[%emt 0:00:08]} Kf6 {[%emt 0:00:25]} 34. c4+ {[%emt 0:00:11]} Kg6 {[%emt 0:01:51]} 35. cxb5 {[%emt 0:00:19]} Rb8 {[%emt 0:00:51]} 36. Rxa4 {[%emt 0:00:53]} Rxb5 {[%emt 0:00:03]} 37. Rg4+ {[%emt 0:00:15]} Kh6 {[%emt 0:00:27]} 38. a4 {[%emt 0:02:06]} Ra5 {[%emt 0:01:16]} 39. Bc3 {[%emt 0:00:16]} Ra7 {[%emt 0:00:17]} 40. Bd2+ {[%emt 0:00:16]} Kh5 {[%emt 0:00:17]} 41. Rg5+ {[%emt 0:00:20]} Kh6 {[%emt 0:00:28]} 42. Rxc5+ {[%emt 0:00:35]} g5 {[%emt 0:00:12]} 43. Bxg5+ {[%emt 0:00:20]} Kh5 {[%emt 0:00:18]} 44. Be3+ {[%emt 0:00:18]} Kh4 {[%emt 0:00:45]} 45. Rc4+ {[%emt 0:00:13]} Kg3 {[%emt 0:00:12]} 46. Bxa7 {[%emt 0:00:30]} h5 {[%emt 0:00:04]} 47. Bg1 {[%emt 0:00:19]} Kxg2 {[%emt 0:00:22]} 48. a5 {[%emt 0:00:11]} h4 {[%emt 0:00:08]} 49. a6 {[%emt 0:00:14]} Kh1 {[%emt 0:00:24]} 50. a7 {[%emt 0:00:13]} Kg2 {[%emt 0:00:06]} 51. a8=Q {[%emt 0:00:27]} Kxh3 {[%emt 0:00:18]} 52. Qb8 {[%emt 0:01:09]} Kg2 {[%emt 0:00:12]} 53. Qh2+ {[%emt 0:00:07]} Kxf3 {[%emt 0:00:11]} 54. Qf2# {[%emt 0:00:05]} 1-0

[Event "LJ Slovak Open 2022"]
[Site "Liptovsky Jan"]
[Date "2022.06.23"]
[Round "1.41"]
[White "Livnansky, Tomas"]
[Black "Kukan, Michal"]
[Result "0-1"]
[ECO "C41"]
[WhiteElo "1244"]
[BlackElo "1767"]
[Annotator "NA RC"]
[PlyCount "89"]
[EventDate "2022.06.23"]
[EventType "swiss"]
[EventCountry "SVK"]
[SourceTitle "playchess.com"]
[Source "ChessBase"]
[SourceQuality "1"]
[TimeControl "3600+30"]

1. e4 {[%emt 0:00:05]} e5 {[%emt 0:00:25]} 2. Nf3 {[%emt 0:00:13]} d6 {[%emt 0:00:17]} 3. Bc4 {[%emt 0:00:24]} Be7 {[%emt 0:00:21]} 4. d3 {[%emt 0:00:25]} Nf6 {[%emt 0:00:36]} 5. O-O {[%emt 0:00:51]} Bg4 {[%emt 0:00:29]} 6. h3 {[%emt 0:01:01]} Bh5 {[%emt 0:00:27]} 7. Nc3 {[%emt 0:00:31]} O-O {[%emt 0:00:29]} 8. Be3 {[%emt 0:03:52]} Nc6 {[%emt 0:00:28]} 9. Nd5 {[%emt 0:02:46]} Nxd5 {[%emt 0:01:48]} 10. Bxd5 {[%emt 0:00:04]} Kh8 {[%emt 0:01:16]} 11. c3 {[%emt 0:00:57]} Qd7 {[%emt 0:02:31]} 12. d4 {[%emt 0:01:11]} f5 {[%emt 0:01:54]} 13. Bxc6 {[%emt 0:00:57]} Qxc6 {[%emt 0:02:17]} 14. d5 {[%emt 0:00:24]} Qe8 {[%emt 0:02:30]} 15. exf5 {[%emt 0:04:43]} e4 {[%emt 0:02:12]} 16. g4 {[%emt 0:01:25]} exf3 {[%emt 0:00:41]} 17. Qxf3 {[%emt 0:00:40]} Bf7 {[%emt 0:01:40]} 18. c4 {[%emt 0:03:49]} Bf6 {[%emt 0:01:08]} 19. Rab1 {[%emt 0:01:42]} Be5 {[%emt 0:01:15]} 20. Rfd1 {[%emt 0:01:10]} h5 {[%emt 0:02:30]} 21. Bd4 {[%emt 0:00:45]} g6 {[%emt 0:07:32]} 22. Bxe5+ {[%emt 0:00:55]} Qxe5 {[%emt 0:00:53]} 23. Re1 {[%emt 0:01:23]} Qf6 {[%emt 0:00:29]} 24. Qc3 {[%emt 0:01:47]} Qxc3 {[%emt 0:01:09]} 25. bxc3 {[%emt 0:01:43]} b6 {[%emt 0:00:31]} 26. Re7 {[%emt 0:00:48]} Rac8 {[%emt 0:00:33]} 27. a4 {[%emt 0:01:31]} gxf5 {[%emt 0:01:19]} 28. gxf5 {[%emt 0:00:41]} Kg7 {[%emt 0:00:33]} 29. a5 {[%emt 0:01:12]} Kf6 {[%emt 0:00:23]} 30. Re3 {[%emt 0:02:57]} Rg8+ {[%emt 0:00:38]} 31. Kf1 {[%emt 0:00:17]} Rg5 {[%emt 0:00:28]} 32. axb6 {[%emt 0:00:25]} axb6 {[%emt 0:00:13]} 33. Rf3 {[%emt 0:01:35]} Rxf5 {[%emt 0:00:17]} 34. Rxf5+ {[%emt 0:00:14]} Kxf5 {[%emt 0:00:18]} 35. Kg2 {[%emt 0:00:34]} Kf4 {[%emt 0:00:34]} 36. Re1 {[%emt 0:10:09]} Rg8+ {[%emt 0:01:02]} 37. Kf1 {[%emt 0:00:44]} Re8 {[%emt 0:01:02]} 38. Ra1 {[%emt 0:00:47]} Bg6 {[%emt 0:00:17]} 39. Ra7 {[%emt 0:01:14]} Bd3+ {[%emt 0:00:52]} 40. Kg2 {[%emt 0:01:24]} Rg8+ {[%emt 0:01:03]} 41. Kh2 {[%emt 0:00:09]} Be4 {[%emt 0:00:50]} 42. f3 {[%emt 0:01:12]} Bxf3 {[%emt 0:00:17]} 43. h4 {[%emt 0:00:20]} Rg2+ {[%emt 0:00:24]} 44. Kh3 {[%emt 0:00:15]} Rc2 {[%emt 0:00:23]} 45. Rxc7 {[%emt 0:00:26]} 0-1

[Event "LJ Slovak Open 2022"]
[Site "Liptovsky Jan"]
[Date "2022.06.23"]
[Round "1.42"]
[White "Vastik, Lukas"]
[Black "Szaszak, Matej"]
[Result "1-0"]
[ECO "C50"]
[WhiteElo "1738"]
[BlackElo "1235"]
[Annotator "NA RC"]
[PlyCount "54"]
[EventDate "2022.06.23"]
[EventType "swiss"]
[EventCountry "SVK"]
[SourceTitle "playchess.com"]
[Source "ChessBase"]
[SourceQuality "1"]
[TimeControl "3600+30"]

1. e4 {[%emt 0:00:04]} e5 {[%emt 0:00:05]} 2. Nf3 {[%emt 0:00:08]} Nc6 {[%emt 0:00:12]} 3. Bc4 {[%emt 0:00:39]} Bc5 {[%emt 0:00:13]} 4. d3 {[%emt 0:00:13]} Nf6 {[%emt 0:00:25]} 5. Nc3 {[%emt 0:00:10]} O-O {[%emt 0:00:18]} 6. O-O {[%emt 0:00:22]} d6 {[%emt 0:00:06]} 7. h3 {[%emt 0:00:09]} Be6 {[%emt 0:00:51]} 8. Bg5 {[%emt 0:01:04]} a6 {[%emt 0:00:29]} 9. Nd5 {[%emt 0:00:44]} Bxd5 {[%emt 0:00:20]} 10. Bxd5 {[%emt 0:00:13]} Ne7 {[%emt 0:00:37]} 11. Bxb7 {[%emt 0:00:41]} Rb8 {[%emt 0:00:16]} 12. Bxa6 {[%emt 0:00:17]} Nd7 {[%emt 0:00:19]} 13. Bc4 {[%emt 0:00:26]} Nb6 {[%emt 0:01:04]} 14. Bb3 {[%emt 0:00:20]} d5 {[%emt 0:00:19]} 15. exd5 {[%emt 0:03:49]} Nbxd5 {[%emt 0:00:29]} 16. Bxe7 {[%emt 0:00:23]} Nxe7 {[%emt 0:00:23]} 17. Nxe5 {[%emt 0:00:22]} Qd4 {[%emt 0:00:49]} 18. Qe2 {[%emt 0:01:47]} Qxb2 {[%emt 0:00:49]} 19. Nd7 {[%emt 0:01:16]} Rxb3 {[%emt 0:00:54]} 20. axb3 {[%emt 0:00:27]} Rd8 {[%emt 0:00:28]} 21. Nxc5 {[%emt 0:00:10]} Nd5 {[%emt 0:01:19]} 22. Rfe1 {[%emt 0:01:25]} Nf6 {[%emt 0:00:52]} 23. Qe7 {[%emt 0:00:26]} Qd4 {[%emt 0:00:56]} 24. Ra4 {[%emt 0:00:45]} Qd5 {[%emt 0:00:51]} 25. Re5 {[%emt 0:01:00]} Qc6 {[%emt 0:00:23]} 26. Qxd8+ {[%emt 0:00:11]} Ne8 {[%emt 0:00:28]} 27. Qxe8+ {[%emt 0:00:08]} Qxe8 {[%emt 0:00:10]} 1-0

[Event "LJ Slovak Open 2022"]
[Site "Liptovsky Jan"]
[Date "2022.06.23"]
[Round "1.43"]
[White "Polackova, Eva"]
[Black "Verba, Vladimir"]
[Result "0-1"]
[ECO "B18"]
[WhiteElo "1253"]
[BlackElo "1786"]
[Annotator "NA RC"]
[PlyCount "101"]
[EventDate "2022.06.23"]
[EventType "swiss"]
[EventCountry "SVK"]
[SourceTitle "playchess.com"]
[Source "ChessBase"]
[SourceQuality "1"]
[TimeControl "3600+30"]

1. e4 {[%emt 0:00:04]} c6 {[%emt 0:00:08]} 2. Nc3 {[%emt 0:00:30]} d5 {[%emt 0:00:30]} 3. d4 {[%emt 0:00:18]} dxe4 {[%emt 0:02:41]} 4. Nxe4 {[%emt 0:01:23]} Bf5 {[%emt 0:00:12]} 5. Ng3 {[%emt 0:00:54]} Bg6 {[%emt 0:00:17]} 6. h4 {[%emt 0:00:34]} h6 {[%emt 0:01:36]} 7. Nh3 {[%emt 0:01:19]} Nf6 {[%emt 0:00:49]} 8. Nf4 {[%emt 0:01:34]} Bh7 {[%emt 0:01:02]} 9. Bc4 {[%emt 0:02:01]} e6 {[%emt 0:00:58]} 10. O-O {[%emt 0:01:10]} Bd6 {[%emt 0:10:07]} 11. Re1 {[%emt 0:02:22]} O-O {[%emt 0:01:47]} 12. Nfh5 {[%emt 0:02:35]} Nxh5 {[%emt 0:01:21]} 13. Nxh5 {[%emt 0:01:37]} Qxh4 {[%emt 0:01:10]} 14. g3 {[%emt 0:01:02]} Qe7 {[%emt 0:00:18]} 15. Qg4 {[%emt 0:01:05]} g5 {[%emt 0:02:11]} 16. f4 {[%emt 0:03:40]} Bf5 {[%emt 0:06:49]} 17. Qf3 {[%emt 0:02:52]} g4 {[%emt 0:05:48]} 18. Qg2 {[%emt 0:03:18]} Nd7 {[%emt 0:05:43]} 19. Bd2 {[%emt 0:02:53]} Bxc2 {[%emt 0:05:17]} 20. f5 {[%emt 0:04:04]} Bxf5 {[%emt 0:05:38]} 21. Bxh6 {[%emt 0:01:00]} Rfd8 {[%emt 0:05:53]} 22. Ng7 {[%emt 0:02:07]} Qf6 {[%emt 0:00:49]} 23. Nxf5 {[%emt 0:00:37]} exf5 {[%emt 0:00:52]} 24. Bd2 {[%emt 0:01:04]} Qxd4+ {[%emt 0:00:46]} 25. Kh1 {[%emt 0:00:58]} Qxc4 {[%emt 0:00:19]} 26. Bc3 {[%emt 0:00:44]} Qd5 {[%emt 0:00:23]} 27. Qxd5 {[%emt 0:00:26]} cxd5 {[%emt 0:00:09]} 28. Kg2 {[%emt 0:00:44]} Bf8 {[%emt 0:02:22]} 29. Re2 {[%emt 0:01:56]} Re8 {[%emt 0:01:21]} 30. Rf2 {[%emt 0:01:56]} Bg7 {[%emt 0:00:51]} 31. Rxf5 {[%emt 0:00:55]} Bxc3 {[%emt 0:00:42]} 32. bxc3 {[%emt 0:00:27]} Re2+ {[%emt 0:00:18]} 33. Kf1 {[%emt 0:01:01]} Re5 {[%emt 0:00:09]} 34. Rxe5 {[%emt 0:00:32]} Nxe5 {[%emt 0:00:08]} 35. Rd1 {[%emt 0:00:46]} Nc4 {[%emt 0:00:47]} 36. Kf2 {[%emt 0:00:37]} Rd8 {[%emt 0:00:21]} 37. Rd4 {[%emt 0:00:53]} f5 {[%emt 0:00:28]} 38. Rf4 {[%emt 0:00:20]} Nd6 {[%emt 0:00:18]} 39. Rd4 {[%emt 0:00:38]} Ne4+ {[%emt 0:00:13]} 40. Kg2 {[%emt 0:00:25]} Nxc3 {[%emt 0:00:40]} 41. a3 {[%emt 0:00:40]} Kf7 {[%emt 0:00:34]} 42. Rf4 {[%emt 0:01:58]} Kf6 {[%emt 0:00:12]} 43. Rd4 {[%emt 0:00:29]} Ke5 {[%emt 0:00:33]} 44. Rf4 {[%emt 0:00:36]} d4 {[%emt 0:00:29]} 45. Rf1 {[%emt 0:00:23]} d3 {[%emt 0:00:19]} 46. Rf4 {[%emt 0:00:21]} d2 {[%emt 0:00:29]} 47. Rf2 {[%emt 0:00:17]} d1=Q {[%emt 0:01:54]} 48. Rf1 {[%emt 0:00:17]} Rd2+ {[%emt 0:00:09]} 49. Kg1 {[%emt 0:00:15]} Qe2 {[%emt 0:00:20]} 50. Rxf5+ {[%emt 0:00:33]} Kxf5 {[%emt 0:00:25]} 51. a4 {[%emt 0:00:09]} 0-1